[Event "Early-Titled-Tuesday-Blitz-February-27-2024"]
[Site "Chess.com"]
[Date "2024.02.27"]
[Round "3"]
[White "aRk_iN"]
[Black "wild3000"]
[Result "0-1"]
[WhiteElo "2235"]
[BlackElo "2437"]
[TimeControl "180+1"]
[EndTime "8:27:25 PST"]
[Termination "wild3000 won on time"]

1. d4 {[%clk 0:02:58.3]} 1... d5 {[%clk 0:02:45.7]} 2. c4 {[%clk 0:02:58]} 2...
e6 {[%clk 0:02:45.7]} 3. Nc3 {[%clk 0:02:55.9]} 3... Nf6 {[%clk 0:02:46.2]} 4.
cxd5 {[%clk 0:02:56]} 4... exd5 {[%clk 0:02:46.3]} 5. Bg5 {[%clk 0:02:56.1]}
5... c6 {[%clk 0:02:46.7]} 6. e3 {[%clk 0:02:56.4]} 6... Be7 {[%clk 0:02:46.9]}
7. Bd3 {[%clk 0:02:56.6]} 7... Nbd7 {[%clk 0:02:47.5]} 8. Nge2 {[%clk
0:02:56.9]} 8... O-O {[%clk 0:02:47.8]} 9. f3 {[%clk 0:02:57.3]} 9... Re8 {[%clk
0:02:48.1]} 10. O-O {[%clk 0:02:57.2]} 10... Nh5 {[%clk 0:02:44.1]} 11. Bxe7
{[%clk 0:02:56.8]} 11... Qxe7 {[%clk 0:02:45]} 12. e4 {[%clk 0:02:57.3]} 12...
b5 {[%clk 0:02:31.5]} 13. exd5 {[%clk 0:02:39.9]} 13... b4 {[%clk 0:02:31.6]}
14. dxc6 {[%clk 0:02:38.8]} 14... bxc3 {[%clk 0:02:25.7]} 15. cxd7 {[%clk
0:02:37.9]} 15... Bxd7 {[%clk 0:02:25.3]} 16. bxc3 {[%clk 0:02:37.2]} 16... Qe3+
{[%clk 0:02:23.2]} 17. Kh1 {[%clk 0:02:36.9]} 17... Rac8 {[%clk 0:02:22.8]} 18.
c4 {[%clk 0:02:13.5]} 18... g6 {[%clk 0:02:12.7]} 19. Rb1 {[%clk 0:01:59.9]}
19... Ba4 {[%clk 0:01:59.6]} 20. Rb3 {[%clk 0:01:18.5]} 20... Bxb3 {[%clk
0:01:57.2]} 21. axb3 {[%clk 0:01:19.4]} 21... a5 {[%clk 0:01:51.6]} 22. Qc2
{[%clk 0:00:55.4]} 22... Qh6 {[%clk 0:01:51.3]} 23. Kg1 {[%clk 0:00:51.7]} 23...
Qe3+ {[%clk 0:01:50.8]} 24. Kh1 {[%clk 0:00:51.6]} 24... Qh6 {[%clk 0:01:50.8]}
25. Kg1 {[%clk 0:00:51.8]} 25... Re7 {[%clk 0:01:46.3]} 26. Be4 {[%clk
0:00:48.3]} 26... Qe3+ {[%clk 0:01:41.2]} 27. Kh1 {[%clk 0:00:45.5]} 27... Rb8
{[%clk 0:01:36.2]} 28. Rb1 {[%clk 0:00:31.5]} 28... f5 {[%clk 0:01:23.2]} 29.
Bd5+ {[%clk 0:00:30.6]} 29... Kg7 {[%clk 0:01:20.4]} 30. Ng3 {[%clk 0:00:14.3]}
30... Nxg3+ {[%clk 0:01:15.5]} 31. hxg3 {[%clk 0:00:15.2]} 31... Qxd4 {[%clk
0:01:10]} 32. Qa2 {[%clk 0:00:15.4]} 32... Qc3 {[%clk 0:01:08.4]} 33. Qa3 {[%clk
0:00:13.1]} 33... Rbe8 {[%clk 0:01:04.8]} 34. Qd6 {[%clk 0:00:05.8]} 34... Re1+
{[%clk 0:00:58]} 35. Rxe1 {[%clk 0:00:05.4]} 35... Qxe1+ {[%clk 0:00:58.9]} 36.
Kh2 {[%clk 0:00:05.4]} 36... Qe5 {[%clk 0:00:56.5]} 37. Qc5 {[%clk 0:00:04.2]}
37... h5 {[%clk 0:00:52.9]} 0-1

[Event "Early-Titled-Tuesday-Blitz-February-27-2024"]
[Site "Chess.com"]
[Date "2024.02.27"]
[Round "3"]
[White "wonderfultime"]
[Black "Yan_Dyomin2010"]
[Result "1-0"]
[WhiteElo "3085"]
[BlackElo "2756"]
[TimeControl "180+1"]
[EndTime "8:27:27 PST"]
[Termination "wonderfultime won by resignation"]

1. d4 {[%clk 0:03:00.9]} 1... Nf6 {[%clk 0:02:58]} 2. Nf3 {[%clk 0:03:00.9]}
2... g6 {[%clk 0:02:56.2]} 3. c4 {[%clk 0:03:00.5]} 3... Bg7 {[%clk 0:02:55.2]}
4. g3 {[%clk 0:03:01]} 4... O-O {[%clk 0:02:55]} 5. Bg2 {[%clk 0:03:01.5]} 5...
d6 {[%clk 0:02:53.3]} 6. O-O {[%clk 0:03:01.6]} 6... c6 {[%clk 0:02:49.6]} 7.
Nc3 {[%clk 0:03:01.4]} 7... Bf5 {[%clk 0:02:42]} 8. Re1 {[%clk 0:03:01.5]} 8...
Ne4 {[%clk 0:02:39.7]} 9. Qb3 {[%clk 0:03:01.8]} 9... Nxc3 {[%clk 0:02:38.1]}
10. bxc3 {[%clk 0:03:02.7]} 10... Qc7 {[%clk 0:02:35.7]} 11. e4 {[%clk
0:03:00.4]} 11... Bg4 {[%clk 0:02:35.7]} 12. e5 {[%clk 0:03:00.9]} 12... Bxf3
{[%clk 0:02:27.3]} 13. exd6 {[%clk 0:03:01.1]} 13... exd6 {[%clk 0:02:24.6]} 14.
Bxf3 {[%clk 0:03:01.5]} 14... Nd7 {[%clk 0:02:24.9]} 15. Bf4 {[%clk 0:03:01.2]}
15... Rfe8 {[%clk 0:02:17.6]} 16. c5 {[%clk 0:02:58.8]} 16... Bf8 {[%clk
0:02:14.8]} 17. cxd6 {[%clk 0:02:47.6]} 17... Bxd6 {[%clk 0:02:11.2]} 18. Bxd6
{[%clk 0:02:47.9]} 18... Qxd6 {[%clk 0:02:11]} 19. Qxb7 {[%clk 0:02:48.3]} 19...
Rec8 {[%clk 0:02:03.5]} 20. Re3 {[%clk 0:02:40.4]} 20... Rab8 {[%clk 0:02:00.4]}
21. Qa6 {[%clk 0:02:40.7]} 21... Nf6 {[%clk 0:01:56.2]} 22. Rae1 {[%clk
0:01:45.9]} 22... Rc7 {[%clk 0:01:55.7]} 23. Re5 {[%clk 0:01:41.2]} 23... Kg7
{[%clk 0:01:53.2]} 24. h4 {[%clk 0:01:40.7]} 24... h5 {[%clk 0:01:52.1]} 25. Qa5
{[%clk 0:01:33.3]} 25... Rb5 {[%clk 0:01:40.2]} 26. Qa4 {[%clk 0:01:18.3]} 26...
Nd7 {[%clk 0:01:34]} 27. R5e3 {[%clk 0:01:09.5]} 27... Nb6 {[%clk 0:01:32]} 28.
Qc2 {[%clk 0:01:08.1]} 28... Nc4 {[%clk 0:01:29]} 29. R3e2 {[%clk 0:01:08.6]}
29... c5 {[%clk 0:01:13.6]} 30. d5 {[%clk 0:00:56]} 30... Nb6 {[%clk 0:01:06.1]}
31. Re8 {[%clk 0:00:55.7]} 31... c4 {[%clk 0:01:03.7]} 32. Qd2 {[%clk
0:00:48.5]} 32... Qf6 {[%clk 0:01:01.5]} 33. Kg2 {[%clk 0:00:38.9]} 33... Rd7
{[%clk 0:00:59.6]} 34. Rb8 {[%clk 0:00:37.8]} 34... a6 {[%clk 0:00:53]} 35. Ree8
{[%clk 0:00:37.3]} 35... Kh7 {[%clk 0:00:48.5]} 36. d6 {[%clk 0:00:25.7]} 36...
Rf5 {[%clk 0:00:42.3]} 37. Rh8+ {[%clk 0:00:23.9]} 37... Qxh8 {[%clk 0:00:40]}
38. Rxh8+ {[%clk 0:00:24.8]} 38... Kxh8 {[%clk 0:00:40.7]} 39. Qd4+ {[%clk
0:00:23.6]} 1-0

[Event "Early-Titled-Tuesday-Blitz-February-27-2024"]
[Site "Chess.com"]
[Date "2024.02.27"]
[Round "3"]
[White "PavelChernomordik"]
[Black "alexrustemov"]
[Result "0-1"]
[WhiteElo "2426"]
[BlackElo "2837"]
[TimeControl "180+1"]
[EndTime "8:27:31 PST"]
[Termination "alexrustemov won by resignation"]

1. e4 {[%clk 0:03:00.9]} 1... e6 {[%clk 0:02:59.9]} 2. Nc3 {[%clk 0:03:00.7]}
2... d5 {[%clk 0:03:00.2]} 3. d4 {[%clk 0:03:00.7]} 3... dxe4 {[%clk 0:03:00.3]}
4. Nxe4 {[%clk 0:03:00.4]} 4... Bd7 {[%clk 0:03:01]} 5. Nf3 {[%clk 0:02:59.9]}
5... Bc6 {[%clk 0:03:01.4]} 6. Bd3 {[%clk 0:03:00.3]} 6... Nd7 {[%clk
0:03:01.7]} 7. Qe2 {[%clk 0:03:00.2]} 7... Ngf6 {[%clk 0:03:01.7]} 8. Bd2 {[%clk
0:02:47]} 8... Nxe4 {[%clk 0:02:59.6]} 9. Bxe4 {[%clk 0:02:46.9]} 9... Bxe4
{[%clk 0:03:00.3]} 10. Qxe4 {[%clk 0:02:46.7]} 10... c6 {[%clk 0:03:00.8]} 11.
O-O-O {[%clk 0:02:42.3]} 11... Be7 {[%clk 0:03:01]} 12. h4 {[%clk 0:02:40.6]}
12... Qc7 {[%clk 0:02:55.6]} 13. h5 {[%clk 0:02:29.7]} 13... h6 {[%clk
0:02:55.5]} 14. Qg4 {[%clk 0:02:26.1]} 14... Bf6 {[%clk 0:02:47.2]} 15. Bf4
{[%clk 0:02:24.8]} 15... Qa5 {[%clk 0:02:42.9]} 16. Kb1 {[%clk 0:02:24.6]} 16...
O-O-O {[%clk 0:02:40.6]} 17. Rhe1 {[%clk 0:02:22.8]} 17... Rhe8 {[%clk
0:02:25.4]} 18. Ne5 {[%clk 0:02:10]} 18... Bxe5 {[%clk 0:02:15]} 19. dxe5 {[%clk
0:02:07.5]} 19... Rg8 {[%clk 0:02:09.8]} 20. Qf3 {[%clk 0:01:57.5]} 20... Nb6
{[%clk 0:01:40.7]} 21. Bg3 {[%clk 0:01:50.1]} 21... Rxd1+ {[%clk 0:01:35]} 22.
Rxd1 {[%clk 0:01:49.5]} 22... Rd8 {[%clk 0:01:35.3]} 23. Rxd8+ {[%clk 0:01:41]}
23... Kxd8 {[%clk 0:01:36.2]} 24. c3 {[%clk 0:01:30.7]} 24... Ke8 {[%clk
0:01:34.1]} 25. Qg4 {[%clk 0:01:22.1]} 25... Qd5 {[%clk 0:01:29.6]} 26. Kc1
{[%clk 0:01:14.9]} 26... Kf8 {[%clk 0:01:27]} 27. Qb4+ {[%clk 0:01:11.9]} 27...
Kg8 {[%clk 0:01:26.6]} 28. f3 {[%clk 0:01:06.4]} 28... Nc4 {[%clk 0:01:14.6]}
29. Bf4 {[%clk 0:00:58.1]} 29... b5 {[%clk 0:01:02.5]} 30. b3 {[%clk 0:00:51.9]}
30... Nxe5 {[%clk 0:01:00.5]} 31. Bxe5 {[%clk 0:00:38.8]} 31... Qxe5 {[%clk
0:01:00.7]} 32. Kd2 {[%clk 0:00:35.2]} 32... Qg5+ {[%clk 0:00:57.4]} 33. Kd3
{[%clk 0:00:31.4]} 33... Qxg2 {[%clk 0:00:56]} 34. Qf4 {[%clk 0:00:27.6]} 34...
Qg1 {[%clk 0:00:49.1]} 35. Qe4 {[%clk 0:00:19.7]} 35... Qb1+ {[%clk 0:00:44.8]}
36. Kd4 {[%clk 0:00:19]} 36... Qxe4+ {[%clk 0:00:45.2]} 0-1

[Event "Early-Titled-Tuesday-Blitz-February-27-2024"]
[Site "Chess.com"]
[Date "2024.02.27"]
[Round "3"]
[White "chessamical"]
[Black "Leebit02"]
[Result "0-1"]
[WhiteElo "2159"]
[BlackElo "2545"]
[TimeControl "180+1"]
[EndTime "8:27:33 PST"]
[Termination "Leebit02 won on time"]

1. d4 {[%clk 0:02:55.8]} 1... d5 {[%clk 0:02:59.9]} 2. c4 {[%clk 0:02:52.1]}
2... dxc4 {[%clk 0:02:59]} 3. Nf3 {[%clk 0:02:50.8]} 3... Nf6 {[%clk 0:02:58.9]}
4. e3 {[%clk 0:02:50.9]} 4... e6 {[%clk 0:02:58.9]} 5. Bxc4 {[%clk 0:02:51.4]}
5... c5 {[%clk 0:02:59.4]} 6. O-O {[%clk 0:02:50.6]} 6... a6 {[%clk 0:03:00]} 7.
Qe2 {[%clk 0:02:44.8]} 7... b5 {[%clk 0:02:55.7]} 8. Bd3 {[%clk 0:02:44.6]} 8...
Nbd7 {[%clk 0:02:49.5]} 9. a4 {[%clk 0:02:34.3]} 9... bxa4 {[%clk 0:02:38.5]}
10. Nc3 {[%clk 0:02:26.1]} 10... Bb7 {[%clk 0:02:31.9]} 11. Rxa4 {[%clk
0:02:08.4]} 11... cxd4 {[%clk 0:02:11.7]} 12. exd4 {[%clk 0:01:51.8]} 12... Nb6
{[%clk 0:01:59.7]} 13. Ra1 {[%clk 0:01:38.4]} 13... Be7 {[%clk 0:01:53.5]} 14.
Bxa6 {[%clk 0:01:33.3]} 14... Bxa6 {[%clk 0:01:46.8]} 15. Rxa6 {[%clk
0:01:32.1]} 15... O-O {[%clk 0:01:44.9]} 16. Bf4 {[%clk 0:01:27.9]} 16... Nfd5
{[%clk 0:01:40.3]} 17. Be5 {[%clk 0:01:17.8]} 17... Nb4 {[%clk 0:01:25.9]} 18.
Rxa8 {[%clk 0:01:14.1]} 18... Qxa8 {[%clk 0:01:26.4]} 19. Nd2 {[%clk 0:00:32.8]}
19... Qc6 {[%clk 0:01:17.6]} 20. Nde4 {[%clk 0:00:28.9]} 20... Rd8 {[%clk
0:01:08.4]} 21. Re1 {[%clk 0:00:23.6]} 21... Nc4 {[%clk 0:01:02.9]} 22. Qg4
{[%clk 0:00:20.5]} 22... Nxe5 {[%clk 0:00:56.4]} 23. dxe5 {[%clk 0:00:20.4]}
23... Nd3 {[%clk 0:00:57.1]} 24. Re3 {[%clk 0:00:18.3]} 24... Nxe5 {[%clk
0:00:56.8]} 25. Qg3 {[%clk 0:00:15.5]} 25... Nc4 {[%clk 0:00:52.7]} 26. Re1
{[%clk 0:00:13.8]} 26... Nxb2 {[%clk 0:00:50.1]} 27. h4 {[%clk 0:00:14]} 27...
Qc4 {[%clk 0:00:34.5]} 28. h5 {[%clk 0:00:13.1]} 28... h6 {[%clk 0:00:34.5]} 29.
Qe5 {[%clk 0:00:06.8]} 29... Nd3 {[%clk 0:00:33.3]} 0-1

[Event "Early-Titled-Tuesday-Blitz-February-27-2024"]
[Site "Chess.com"]
[Date "2024.02.27"]
[Round "3"]
[White "WiktoriaPOL"]
[Black "joksijoksi"]
[Result "0-1"]
[WhiteElo "2262"]
[BlackElo "2484"]
[TimeControl "180+1"]
[EndTime "8:27:38 PST"]
[Termination "joksijoksi won by resignation"]

1. c4 {[%clk 0:02:58.9]} 1... Nf6 {[%clk 0:02:56.8]} 2. Nc3 {[%clk 0:02:56.9]}
2... g6 {[%clk 0:02:52.9]} 3. g3 {[%clk 0:02:56.4]} 3... Bg7 {[%clk 0:02:53]} 4.
Bg2 {[%clk 0:02:56.2]} 4... O-O {[%clk 0:02:53.4]} 5. e4 {[%clk 0:02:55.5]} 5...
d6 {[%clk 0:02:53.7]} 6. Nge2 {[%clk 0:02:55]} 6... Nbd7 {[%clk 0:02:54]} 7. O-O
{[%clk 0:02:54.6]} 7... e5 {[%clk 0:02:37.2]} 8. d3 {[%clk 0:02:51.2]} 8... Nc5
{[%clk 0:02:36.2]} 9. h3 {[%clk 0:02:50]} 9... Ne6 {[%clk 0:02:35.7]} 10. f4
{[%clk 0:02:48.5]} 10... exf4 {[%clk 0:02:33.7]} 11. gxf4 {[%clk 0:02:43.2]}
11... Nd7 {[%clk 0:02:19.6]} 12. f5 {[%clk 0:02:38.2]} 12... Nd4 {[%clk
0:02:17.5]} 13. Be3 {[%clk 0:02:35.1]} 13... Nxe2+ {[%clk 0:02:14.7]} 14. Qxe2
{[%clk 0:02:34.5]} 14... a5 {[%clk 0:01:54.9]} 15. Nd5 {[%clk 0:02:32]} 15... c6
{[%clk 0:01:50.1]} 16. Nf4 {[%clk 0:02:01.9]} 16... Qh4 {[%clk 0:01:43.3]} 17.
d4 {[%clk 0:01:52.7]} 17... a4 {[%clk 0:01:30.2]} 18. Qf3 {[%clk 0:01:47]} 18...
a3 {[%clk 0:01:26.5]} 19. b3 {[%clk 0:01:46.7]} 19... Ra5 {[%clk 0:01:08]} 20.
Ne2 {[%clk 0:01:26.2]} 20... c5 {[%clk 0:01:02.3]} 21. Bf2 {[%clk 0:01:17.2]}
21... Qg5 {[%clk 0:01:01]} 22. h4 {[%clk 0:01:16.9]} 22... Qe7 {[%clk
0:00:47.3]} 23. Nc3 {[%clk 0:01:05.5]} 23... cxd4 {[%clk 0:00:45.9]} 24. Nd5
{[%clk 0:01:05.3]} 24... Rxd5 {[%clk 0:00:45]} 25. exd5 {[%clk 0:01:01]} 25...
Ne5 {[%clk 0:00:43.2]} 26. Qf4 {[%clk 0:00:54.4]} 26... Bxf5 {[%clk 0:00:41.2]}
27. Rad1 {[%clk 0:00:47.5]} 27... Nd3 {[%clk 0:00:35.4]} 28. Qf3 {[%clk
0:00:42.7]} 28... Nxf2 {[%clk 0:00:35]} 29. Rxf2 {[%clk 0:00:41.7]} 29... d3
{[%clk 0:00:34.8]} 30. Rff1 {[%clk 0:00:27.4]} 30... Qxh4 {[%clk 0:00:32.8]} 31.
Bh1 {[%clk 0:00:03.7]} 31... Bd4+ {[%clk 0:00:30.6]} 32. Kg2 {[%clk 0:00:03.6]}
32... Be4 {[%clk 0:00:30.1]} 33. Rxd3 {[%clk 0:00:02.3]} 33... Bxf3+ {[%clk
0:00:28.5]} 0-1

[Event "Early-Titled-Tuesday-Blitz-February-27-2024"]
[Site "Chess.com"]
[Date "2024.02.27"]
[Round "3"]
[White "viktorskliarov"]
[Black "AlexeiShirov"]
[Result "0-1"]
[WhiteElo "2582"]
[BlackElo "2857"]
[TimeControl "180+1"]
[EndTime "8:27:40 PST"]
[Termination "AlexeiShirov won by resignation"]

1. e4 {[%clk 0:03:00.9]} 1... e5 {[%clk 0:02:59.8]} 2. Nc3 {[%clk 0:03:00.7]}
2... Nf6 {[%clk 0:02:58.7]} 3. Bc4 {[%clk 0:03:00.9]} 3... Nxe4 {[%clk
0:02:56.7]} 4. Qh5 {[%clk 0:03:00.4]} 4... Nd6 {[%clk 0:02:55.7]} 5. Bb3 {[%clk
0:03:00.6]} 5... Be7 {[%clk 0:02:51.4]} 6. Qxe5 {[%clk 0:02:59.8]} 6... O-O
{[%clk 0:02:49]} 7. d4 {[%clk 0:02:59.1]} 7... Nc6 {[%clk 0:02:46.6]} 8. Qf4
{[%clk 0:02:59.1]} 8... Re8 {[%clk 0:02:33.9]} 9. Nge2 {[%clk 0:02:58.2]} 9...
Bf6 {[%clk 0:02:26.4]} 10. Be3 {[%clk 0:02:44.1]} 10... Na5 {[%clk 0:02:23.3]}
11. O-O-O {[%clk 0:02:25.6]} 11... Ndc4 {[%clk 0:02:18.6]} 12. h4 {[%clk
0:01:45.3]} 12... Nxb3+ {[%clk 0:02:12.9]} 13. axb3 {[%clk 0:01:44.7]} 13...
Nxe3 {[%clk 0:02:12.4]} 14. fxe3 {[%clk 0:01:45.6]} 14... d5 {[%clk 0:02:11.6]}
15. e4 {[%clk 0:01:38]} 15... dxe4 {[%clk 0:02:02.6]} 16. Nxe4 {[%clk
0:01:36.8]} 16... Be7 {[%clk 0:01:54.1]} 17. N2c3 {[%clk 0:01:15.8]} 17... f5
{[%clk 0:01:52.3]} 18. Ng5 {[%clk 0:01:11.1]} 18... Qd6 {[%clk 0:01:49]} 19. Qf1
{[%clk 0:01:02.7]} 19... Qa6 {[%clk 0:01:41.7]} 20. Qc4+ {[%clk 0:00:43.5]}
20... Qxc4 {[%clk 0:01:40.1]} 21. bxc4 {[%clk 0:00:44.4]} 21... Bd7 {[%clk
0:01:34.1]} 22. Nd5 {[%clk 0:00:38]} 22... Bd6 {[%clk 0:01:22.5]} 23. c5 {[%clk
0:00:34.3]} 23... Bg3 {[%clk 0:01:16.5]} 24. Rh3 {[%clk 0:00:33.4]} 24... Bc6
{[%clk 0:01:11.7]} 25. c4 {[%clk 0:00:23.9]} 25... f4 {[%clk 0:01:07]} 26. Nf3
{[%clk 0:00:17.3]} 26... Rac8 {[%clk 0:00:54.5]} 27. Ne5 {[%clk 0:00:10.8]}
27... Ba4 {[%clk 0:00:52.6]} 28. Rd3 {[%clk 0:00:09.9]} 28... Rcd8 {[%clk
0:00:39.7]} 29. Nxc7 {[%clk 0:00:09.2]} 29... Rxe5 {[%clk 0:00:39]} 30. Rdxg3
{[%clk 0:00:09.4]} 30... Re1+ {[%clk 0:00:38.5]} 31. Kd2 {[%clk 0:00:09.9]}
31... Rd1+ {[%clk 0:00:38.2]} 32. Kc3 {[%clk 0:00:10.3]} 32... fxg3 {[%clk
0:00:37.6]} 33. d5 {[%clk 0:00:09.5]} 33... Rc8 {[%clk 0:00:32.5]} 34. Ne6
{[%clk 0:00:09.4]} 34... Bd7 {[%clk 0:00:32]} 35. Rxg3 {[%clk 0:00:07.7]} 35...
Bxe6 {[%clk 0:00:31.4]} 36. dxe6 {[%clk 0:00:08.4]} 36... Re1 {[%clk 0:00:31.3]}
0-1

[Event "Early-Titled-Tuesday-Blitz-February-27-2024"]
[Site "Chess.com"]
[Date "2024.02.27"]
[Round "3"]
[White "hamelekh"]
[Black "rasmussvane"]
[Result "0-1"]
[WhiteElo "2710"]
[BlackElo "2946"]
[TimeControl "180+1"]
[EndTime "8:27:41 PST"]
[Termination "rasmussvane won by resignation"]

1. d4 {[%clk 0:02:59.7]} 1... Nf6 {[%clk 0:02:58.1]} 2. Bg5 {[%clk 0:02:58.2]}
2... d5 {[%clk 0:02:56.4]} 3. Bxf6 {[%clk 0:02:57.9]} 3... exf6 {[%clk
0:02:57.3]} 4. e3 {[%clk 0:02:57.8]} 4... c6 {[%clk 0:02:56.7]} 5. c3 {[%clk
0:02:57.4]} 5... Bd6 {[%clk 0:02:56.3]} 6. Bd3 {[%clk 0:02:57]} 6... f5 {[%clk
0:02:52.8]} 7. Nd2 {[%clk 0:02:56.3]} 7... g6 {[%clk 0:02:52.8]} 8. Ngf3 {[%clk
0:02:52.4]} 8... Nd7 {[%clk 0:02:52.7]} 9. c4 {[%clk 0:02:52.9]} 9... dxc4
{[%clk 0:02:51.5]} 10. Bxc4 {[%clk 0:02:52.9]} 10... Nf6 {[%clk 0:02:43.1]} 11.
Qc2 {[%clk 0:02:49.8]} 11... O-O {[%clk 0:02:40.5]} 12. O-O {[%clk 0:02:49.2]}
12... Kg7 {[%clk 0:02:39.2]} 13. a3 {[%clk 0:02:49.1]} 13... a5 {[%clk
0:02:37.3]} 14. Ba2 {[%clk 0:02:45.3]} 14... Qe7 {[%clk 0:02:36.8]} 15. Nc4
{[%clk 0:02:45]} 15... Bc7 {[%clk 0:02:34.9]} 16. Nce5 {[%clk 0:02:44.6]} 16...
Ng4 {[%clk 0:02:19.9]} 17. Nd3 {[%clk 0:02:42.2]} 17... Bd6 {[%clk 0:02:18.1]}
18. Rac1 {[%clk 0:02:40.7]} 18... Nf6 {[%clk 0:02:08.7]} 19. Nfe5 {[%clk
0:02:37.6]} 19... Ng4 {[%clk 0:02:05.4]} 20. Nf3 {[%clk 0:02:37.1]} 20... h5
{[%clk 0:02:04.8]} 21. Rfd1 {[%clk 0:02:34.2]} 21... Nf6 {[%clk 0:02:00.5]} 22.
Nc5 {[%clk 0:02:30.2]} 22... Rb8 {[%clk 0:01:53.9]} 23. h3 {[%clk 0:02:27.1]}
23... Ne4 {[%clk 0:01:46.6]} 24. Nd2 {[%clk 0:02:14.1]} 24... Nxc5 {[%clk
0:01:29.4]} 25. dxc5 {[%clk 0:02:13.9]} 25... Bc7 {[%clk 0:01:29.6]} 26. Qc3+
{[%clk 0:02:09.1]} 26... Be5 {[%clk 0:01:26.3]} 27. Qc2 {[%clk 0:02:07.1]} 27...
f4 {[%clk 0:01:17.7]} 28. e4 {[%clk 0:02:01.6]} 28... Bf6 {[%clk 0:01:08.7]} 29.
Re1 {[%clk 0:01:52.2]} 29... Be5 {[%clk 0:01:01.4]} 30. Nf3 {[%clk 0:01:51.5]}
30... Re8 {[%clk 0:01:01.2]} 31. Nxe5 {[%clk 0:01:50.7]} 31... Qxe5 {[%clk
0:01:02.1]} 32. Qc3 {[%clk 0:01:49.1]} 32... Qxc3 {[%clk 0:01:02]} 33. Rxc3
{[%clk 0:01:49]} 33... Be6 {[%clk 0:01:00.8]} 34. Bxe6 {[%clk 0:01:47.7]} 34...
Rxe6 {[%clk 0:01:01.7]} 35. Rd3 {[%clk 0:01:46.9]} 35... Re5 {[%clk 0:01:00.7]}
36. b4 {[%clk 0:01:46.6]} 36... axb4 {[%clk 0:01:01.6]} 37. axb4 {[%clk
0:01:47.4]} 37... Re7 {[%clk 0:00:57.5]} 38. Kf1 {[%clk 0:01:44]} 38... Ra8
{[%clk 0:00:57.3]} 39. f3 {[%clk 0:01:40.8]} 39... Ra4 {[%clk 0:00:51.3]} 40.
Rb3 {[%clk 0:01:40.1]} 40... Rd7 {[%clk 0:00:50]} 41. Reb1 {[%clk 0:01:25.8]}
41... Rd4 {[%clk 0:00:46.9]} 42. h4 {[%clk 0:01:22]} 42... Kf6 {[%clk
0:00:46.2]} 43. Ke2 {[%clk 0:01:21.9]} 43... Ke5 {[%clk 0:00:44.1]} 44. R1b2
{[%clk 0:01:20.8]} 44... f5 {[%clk 0:00:37.1]} 45. exf5 {[%clk 0:01:20.4]} 45...
Kxf5 {[%clk 0:00:38]} 46. Kf2 {[%clk 0:01:20.1]} 46... Kf6 {[%clk 0:00:36.2]}
47. b5 {[%clk 0:01:17.9]} 47... Rac4 {[%clk 0:00:36.2]} 48. bxc6 {[%clk
0:01:18.1]} 48... bxc6 {[%clk 0:00:37.1]} 49. Rb8 {[%clk 0:01:15.1]} 49... Rxc5
{[%clk 0:00:37.5]} 50. R2b7 {[%clk 0:01:13.5]} 50... Rd2+ {[%clk 0:00:27.4]} 51.
Ke1 {[%clk 0:01:11.8]} 51... Rxg2 {[%clk 0:00:23.2]} 52. Rf8+ {[%clk 0:01:07]}
52... Ke6 {[%clk 0:00:22.9]} 53. Kd1 {[%clk 0:01:03]} 53... Ra5 {[%clk
0:00:19.9]} 0-1

[Event "Early-Titled-Tuesday-Blitz-February-27-2024"]
[Site "Chess.com"]
[Date "2024.02.27"]
[Round "3"]
[White "GelmanAlexander"]
[Black "secrethawk1"]
[Result "0-1"]
[WhiteElo "2727"]
[BlackElo "2510"]
[TimeControl "180+1"]
[EndTime "8:27:41 PST"]
[Termination "secrethawk1 won by resignation"]

1. d4 {[%clk 0:03:00.9]} 1... d5 {[%clk 0:02:57.6]} 2. Nc3 {[%clk 0:03:01]} 2...
Nf6 {[%clk 0:02:57.3]} 3. Bf4 {[%clk 0:03:01.1]} 3... c6 {[%clk 0:02:50.1]} 4.
f3 {[%clk 0:03:01]} 4... Bf5 {[%clk 0:02:48.3]} 5. g4 {[%clk 0:03:00.8]} 5...
Bg6 {[%clk 0:02:48.3]} 6. h4 {[%clk 0:03:01.3]} 6... h5 {[%clk 0:02:47.7]} 7. g5
{[%clk 0:03:01.4]} 7... Nfd7 {[%clk 0:02:47.8]} 8. e4 {[%clk 0:03:02]} 8... dxe4
{[%clk 0:02:47.1]} 9. fxe4 {[%clk 0:03:02.1]} 9... e6 {[%clk 0:02:45]} 10. Nge2
{[%clk 0:02:55.7]} 10... Bb4 {[%clk 0:02:42.6]} 11. a3 {[%clk 0:02:54.4]} 11...
Bxe4 {[%clk 0:02:25.4]} 12. Rh2 {[%clk 0:02:35.9]} 12... Bxc3+ {[%clk
0:02:22.3]} 13. Nxc3 {[%clk 0:02:36.8]} 13... Bg6 {[%clk 0:02:20.8]} 14. Qf3
{[%clk 0:02:25.1]} 14... Qe7 {[%clk 0:02:15.9]} 15. Qg3 {[%clk 0:02:19]} 15...
e5 {[%clk 0:01:55.3]} 16. dxe5 {[%clk 0:02:14]} 16... Nc5 {[%clk 0:01:45.9]} 17.
e6 {[%clk 0:01:55.5]} 17... Nxe6 {[%clk 0:01:42.3]} 18. Bd6 {[%clk 0:01:52.3]}
18... Qd8 {[%clk 0:01:39.9]} 19. O-O-O {[%clk 0:01:50.6]} 19... Nd7 {[%clk
0:01:38]} 20. Bh3 {[%clk 0:01:38.3]} 20... Qa5 {[%clk 0:01:22.4]} 21. Bb4 {[%clk
0:00:54.6]} 21... Qe5 {[%clk 0:00:59.4]} 22. Qxe5 {[%clk 0:00:37.4]} 22... Nxe5
{[%clk 0:00:59.3]} 23. Re2 {[%clk 0:00:38.1]} 23... Ng4 {[%clk 0:00:54.1]} 24.
Ne4 {[%clk 0:00:28.3]} 24... Bxe4 {[%clk 0:00:51.5]} 25. Rxe4 {[%clk 0:00:29.2]}
25... Nf2 {[%clk 0:00:50.5]} 26. Rxe6+ {[%clk 0:00:23.6]} 26... fxe6 {[%clk
0:00:49.3]} 27. Bxe6 {[%clk 0:00:17.1]} 27... Nxd1 {[%clk 0:00:49]} 28. Kxd1
{[%clk 0:00:16.7]} 28... Rd8+ {[%clk 0:00:40.8]} 29. Kc1 {[%clk 0:00:16]} 29...
b6 {[%clk 0:00:28.3]} 30. g6 {[%clk 0:00:15.8]} 30... Rf8 {[%clk 0:00:16.7]} 31.
Bc3 {[%clk 0:00:12.1]} 31... Rf1+ {[%clk 0:00:16]} 0-1